bitfinex/quotes_BTCUSD_20240803
["timestamp","ask_amount","ask_price","bid_price","bid_amount"]
[1722651287014,0.001,61506.0,61505.0,1.5618]
[1722651287363,0.002,61506.0,61505.0,1.5728]
[1722651290965,0.123939,61506.0,61505.0,1.5728]
[1722651291212,0.123939,61506.0,61505.0,1.425]
[1722651291388,0.367817,61506.0,61505.0,1.425]
[1722651291595,0.611695,61506.0,61505.0,1.425]
[1722651292299,0.76915424,61506.0,61505.0,1.425]
[1722651292716,1.01303224,61506.0,61505.0,1.425]
[1722651293289,1.01203224,61506.0,61505.0,1.414]
[1722651293511,1.01303224,61506.0,61505.0,1.425]
[1722651293714,1.01203224,61506.0,61505.0,1.411]
[1722651293916,1.01303224,61506.0,61505.0,1.422]
[1722651294712,1.01303224,61506.0,61505.0,1.411]
[1722651294931,1.01203224,61506.0,61505.0,1.411]
[1722651295224,1.01303224,61506.0,61505.0,1.421]
[1722651296415,1.01203224,61506.0,61505.0,1.411]
[1722651296638,1.01103224,61506.0,61505.0,1.4]
[1722651296842,1.01203224,61506.0,61505.0,1.409]
[1722651297039,1.01203224,61506.0,61505.0,1.42]
[1722651297040,1.01303224,61506.0,61505.0,1.42]
[1722651299110,0.76915424,61506.0,61505.0,1.42]
[1722651299330,1.01303224,61506.0,61505.0,1.42]
[1722651299836,1.03603224,61506.0,61505.0,1.42]
[1722651300406,1.03603224,61506.0,61505.0,1.420913]
[1722651301308,1.09897836,61506.0,61505.0,1.420913]
[1722651301510,1.03603224,61506.0,61505.0,1.420913]
[1722651301756,1.09897785,61506.0,61505.0,1.420913]
[1722651302111,1.09923626,61506.0,61505.0,1.420913]
[1722651302415,0.85535826,61506.0,61505.0,1.420913]
[1722651302619,0.52527624,61506.0,61505.0,1.420913]
[1722651302803,0.76915424,61506.0,61505.0,1.484513]
[1722651303148,0.002,61506.0,61505.0,1.484513]
[1722651303365,0.002,61506.0,61505.0,1.562413]
[1722651303366,0.367817,61506.0,61505.0,1.562413]
[1722651303743,0.002,61506.0,61505.0,1.562413]
[1722651303952,0.123939,61506.0,61505.0,1.562413]
[1722651304119,0.367817,61506.0,61505.0,1.562413]
[1722651304673,0.367817,61506.0,61505.0,1.420913]
[1722651305632,0.611695,61506.0,61505.0,1.420913]
[1722651305831,0.76915424,61506.0,61505.0,1.420913]
[1722651306070,1.01303224,61506.0,61505.0,1.420913]
[1722651306452,1.03603224,61506.0,61505.0,1.420913]
[1722651306888,1.09987889,61506.0,61505.0,1.420913]
[1722651307472,1.16347889,61506.0,61505.0,1.420913]
[1722651308101,1.09987889,61506.0,61505.0,1.420913]
[1722651308844,1.03603224,61506.0,61505.0,1.420913]
[1722651309050,0.002,61506.0,61505.0,1.420913]
[1722651309401,0.002,61506.0,61505.0,1.566213]
[1722651309551,0.367817,61506.0,61505.0,1.566213]
[1722651310404,0.611695,61506.0,61505.0,1.566213]
[1722651310610,0.123939,61506.0,61505.0,1.566213]
[1722651310809,0.367817,61506.0,61505.0,1.566213]
[1722651311012,0.123939,61506.0,61505.0,1.566213]
[1722651311250,0.002,61506.0,61505.0,1.566213]
[1722651311637,0.123939,61506.0,61505.0,1.566213]
[1722651312316,0.123939,61506.0,61505.0,1.557213]
[1722651312317,0.122939,61506.0,61505.0,1.557213]
[1722651312513,0.243867,61509.0,61506.0,0.00157439]
[1722651312713,0.365811,61507.0,61506.0,0.00157439]
[1722651312886,0.121937,61507.0,61506.0,0.00157439]
[1722651313093,0.365811,61507.0,61506.0,0.00157439]
[1722651313249,0.121939,61506.0,61505.0,1.570213]
[1722651313443,0.243862,61510.0,61505.0,1.556213]
[1722651313786,0.15745924,61513.0,61506.0,0.00157439]
[1722651313992,0.121937,61507.0,61506.0,0.014]
[1722651314782,0.365817,61506.0,61505.0,1.560213]
[1722651315171,0.76715424,61506.0,61505.0,1.400913]
[1722651315518,1.01103224,61506.0,61505.0,1.400913]
[1722651315734,1.14961513,61506.0,61505.0,1.400913]
[1722651315902,0.90573713,61506.0,61505.0,1.400913]
[1722651316109,0.90573713,61506.0,61505.0,1.414913]
[1722651316110,0.76715424,61506.0,61505.0,1.414913]
[1722651316863,0.52327624,61506.0,61505.0,1.414913]
[1722651317335,0.59736127,61506.0,61505.0,1.428913]
[1722651317666,0.84123927,61506.0,61505.0,1.428913]
[1722651318086,0.90607721,61506.0,61505.0,1.428913]
[1722651318264,0.93026738,61506.0,61505.0,1.428913]
[1722651318466,0.83299218,61506.0,61505.0,1.428913]
[1722651319311,1.07687018,61506.0,61505.0,1.428913]
[1722651319510,0.83299218,61506.0,61505.0,1.428913]
[1722651320182,0.85599218,61506.0,61505.0,1.428913]
[1722651320340,1.09987018,61506.0,61505.0,1.428913]
[1722651320513,1.24578299,61506.0,61505.0,1.428913]
[1722651320739,1.00190499,61506.0,61505.0,1.428913]
[1722651320939,0.85499218,61506.0,61505.0,1.414913]
[1722651321237,1.09887018,61506.0,61505.0,1.414913]
[1722651321445,1.09987018,61506.0,61505.0,1.409913]
[1722651321801,0.85599218,61506.0,61505.0,1.416913]
[1722651321981,0.85499218,61506.0,61505.0,1.407913]
[1722651322304,1.09887018,61506.0,61505.0,1.400913]
[1722651323281,1.0979576,61506.0,61505.0,1.400913]
[1722651323514,1.2400576,61506.0,61505.0,1.407913]
[1722651323627,1.2410576,61506.0,61505.0,1.408913]
[1722651324189,1.2400576,61506.0,61505.0,1.400913]
[1722651324325,1.2500576,61506.0,61505.0,1.409913]
[1722651324532,1.67229077,61506.0,61505.0,1.417913]
[1722651324731,1.8806401,61506.0,61505.0,1.40039858]
[1722651324999,1.8806401,61506.0,61505.0,1.3227749]
[1722651325000,1.71548819,61506.0,61505.0,1.3227749]
[1722651325128,1.71548819,61506.0,61505.0,1.3377749]
[1722651325129,1.71648819,61506.0,61505.0,1.3377749]
[1722651326594,1.7161136,61506.0,61505.0,1.3377749]
[1722651326801,1.7161136,61506.0,61505.0,1.3307749]
[1722651326970,1.71626218,61506.0,61505.0,1.3347749]
[1722651327172,1.71526218,61506.0,61505.0,1.3227749]
[1722651327423,1.71826218,61506.0,61505.0,1.3227749]
[1722651327649,2.13354018,61506.0,61505.0,1.3227749]
[1722651327832,2.2990264,61506.0,61505.0,1.25805812]
[1722651328181,2.13154018,61506.0,61505.0,1.25805812]
[1722651328356,2.13748764,61506.0,61505.0,1.25905812]
[1722651328586,2.13748764,61506.0,61505.0,1.21605812]
[1722651328587,2.29384281,61506.0,61505.0,1.21605812]
[1722651328715,2.28784281,61506.0,61505.0,1.21505812]
[1722651328933,2.28784281,61506.0,61505.0,0.89400248]
[1722651328934,2.62950081,61506.0,61505.0,0.89400248]
[1722651329131,1.251475,61488.0,61487.0,0.001413]
[1722651329357,1.70510362,61488.0,61487.0,0.001413]
[1722651329616,2.12045362,61488.0,61487.0,0.001413]
[1722651329891,1.127806,61486.0,61485.0,0.010065]
[1722651330142,1.61619162,61486.0,61485.0,0.010065]
[1722651330343,1.71619162,61486.0,61485.0,0.010065]
[1722651330542,1.45223462,61486.0,61485.0,0.010065]
[1722651330815,1.47223462,61486.0,61485.0,0.010065]
[1722651330972,1.45223462,61486.0,61485.0,0.010065]
[1722651331171,1.19927762,61486.0,61485.0,0.011065]
[1722651331392,1.19927762,61486.0,61485.0,0.010065]
[1722651331596,1.19927762,61486.0,61473.0,0.000913]
[1722651331597,0.864003,61475.0,61473.0,0.000913]
[1722651331795,0.244013,61472.0,61456.0,0.0798]
[1722651331993,0.244013,61472.0,61468.0,0.0644]
[1722651331994,1.08450417,61472.0,61468.0,0.0644]
[1722651332208,1.03450424,61472.0,61468.0,0.0644]
[1722651332580,1.08313341,61472.0,61468.0,0.0644]
[1722651332786,1.08313367,61472.0,61468.0,0.0644]
[1722651333050,1.03450424,61472.0,61468.0,0.0644]
[1722651333497,1.08310651,61472.0,61456.0,0.0798]
[1722651333716,1.03450424,61472.0,61464.0,0.0644]
[1722651333932,1.38151717,61472.0,61471.0,1.187186]
[1722651334306,1.30851724,61472.0,61471.0,1.185186]
[1722651334516,1.28851724,61472.0,61471.0,1.187186]
[1722651335041,1.30851724,61472.0,61471.0,1.185186]
[1722651335192,1.54095113,61472.0,61471.0,1.186186]
[1722651335398,1.31841877,61472.0,61471.0,1.186186]
[1722651336203,1.29841877,61472.0,61471.0,1.186186]
[1722651336407,1.31841877,61472.0,61471.0,1.186186]
[1722651337278,1.29841877,61472.0,61471.0,1.186186]
[1722651337456,1.31841877,61472.0,61471.0,1.186186]
[1722651338454,1.04440577,61472.0,61471.0,1.186186]
[1722651338652,0.76749124,61472.0,61471.0,1.330386]
[1722651338807,0.52347824,61472.0,61471.0,1.330386]
[1722651339015,0.76749124,61472.0,61471.0,1.330386]
[1722651339833,0.76749124,61472.0,61471.0,1.329386]
[1722651340035,0.76749124,61472.0,61471.0,1.330386]
[1722651340222,0.76849124,61472.0,61471.0,1.336386]
[1722651340433,1.01250424,61472.0,61471.0,1.336386]
[1722651340633,0.76749124,61472.0,61471.0,1.329386]
[1722651340835,0.76849124,61472.0,61471.0,1.335386]
[1722651341083,0.76949124,61472.0,61471.0,1.341386]
[1722651341844,0.612032,61472.0,61471.0,1.341386]
[1722651342065,0.124006,61472.0,61471.0,1.341386]
[1722651342366,0.002,61472.0,61471.0,1.341386]
[1722651343074,0.124006,61472.0,61471.0,1.341386]
[1722651343225,0.612032,61472.0,61471.0,1.341386]
[1722651343407,0.856045,61472.0,61471.0,1.341386]
[1722651343609,0.855045,61472.0,61471.0,1.335386]
[1722651343866,0.612032,61472.0,61471.0,1.342386]
[1722651344065,0.611032,61472.0,61471.0,1.336386]
[1722651344272,0.001,61472.0,61471.0,1.336386]
[1722651344567,0.367019,61472.0,61471.0,1.339386]
[1722651344769,0.368019,61472.0,61471.0,1.346386]
[1722651345410,0.612032,61472.0,61471.0,1.346386]
[1722651345908,0.856045,61472.0,61471.0,1.346386]
[1722651346335,0.611032,61472.0,61471.0,1.336386]
[1722651346536,0.76849124,61472.0,61471.0,1.346386]
[1722651346740,0.76749124,61472.0,61471.0,1.339386]
[1722651346852,0.76849124,61472.0,61471.0,1.353386]
[1722651347054,0.76849124,61472.0,61471.0,1.367386]
[1722651347255,0.76849124,61472.0,61471.0,1.223186]
[1722651347470,0.76849124,61472.0,61471.0,1.185186]
[1722651347471,1.01150424,61472.0,61471.0,1.185186]
[1722651347678,1.01150424,61472.0,61471.0,1.195186]
[1722651348095,1.03450424,61472.0,61471.0,1.195186]
[1722651348300,1.03450424,61472.0,61471.0,1.185186]
[1722651348501,1.03450424,61472.0,61471.0,1.195186]
[1722651348700,1.03450424,61472.0,61471.0,1.206186]
[1722651348901,1.03550424,61472.0,61471.0,1.206186]
[1722651349103,1.03550424,61472.0,61471.0,1.195186]
[1722651349328,1.03550424,61472.0,61471.0,1.196186]
[1722651349729,1.03450424,61472.0,61471.0,1.195186]
[1722651350138,1.03450424,61472.0,61471.0,1.187186]
[1722651350615,1.03450424,61472.0,61471.0,1.188186]
[1722651350815,1.03450424,61472.0,61471.0,1.186186]
[1722651351023,1.03450424,61472.0,61471.0,1.190186]
[1722651351230,0.79049124,61472.0,61471.0,1.190186]
[1722651351430,0.52347824,61472.0,61471.0,1.337986]
[1722651351658,0.76749124,61472.0,61471.0,1.337986]
[1722651351862,0.52347824,61472.0,61471.0,1.336986]
[1722651352221,0.76749124,61472.0,61471.0,1.340986]
[1722651352405,0.52347824,61472.0,61471.0,1.336986]
[1722651352604,0.76749124,61472.0,61471.0,1.336986]
[1722651352966,0.366019,61472.0,61471.0,1.337986]
[1722651353270,0.610032,61472.0,61471.0,1.342986]
[1722651353646,0.366019,61472.0,61471.0,1.342986]
[1722651354050,0.610032,61472.0,61471.0,1.342986]
[1722651355496,0.610032,61472.0,61471.0,1.195186]
[1722651355497,1.16224466,61472.0,61471.0,1.195186]
[1722651355750,1.10024533,61472.0,61471.0,1.195186]
[1722651356540,1.10024533,61472.0,61471.0,1.190186]
[1722651356960,1.10024533,61472.0,61471.0,1.191186]
[1722651357124,1.10024533,61472.0,61471.0,1.186186]
[1722651357364,1.10024533,61472.0,61471.0,1.185186]
[1722651357585,1.10024533,61472.0,61471.0,1.250586]
[1722651357586,1.10124533,61472.0,61471.0,1.250586]
[1722651357786,0.79149124,61472.0,61471.0,1.250586]
[1722651358003,0.83503975,61472.0,61471.0,1.250586]
[1722651358222,0.76749124,61472.0,61471.0,1.250586]
[1722651358448,0.83453274,61472.0,61471.0,1.251586]
[1722651358646,0.83553274,61472.0,61471.0,1.251586]
[1722651358845,0.83553274,61472.0,61471.0,1.333986]
[1722651359050,0.83453274,61472.0,61471.0,1.333986]
[1722651359295,0.83453274,61472.0,61471.0,1.338986]
[1722651359643,0.83453274,61472.0,61471.0,1.333986]
[1722651359806,1.07854574,61472.0,61471.0,1.332986]
[1722651360014,1.07854574,61472.0,61471.0,1.195186]
[1722651360428,1.07854574,61472.0,61471.0,1.190186]
[1722651360655,1.07954574,61472.0,61471.0,1.196186]
[1722651360827,1.01250424,61472.0,61471.0,1.196186]
[1722651361029,1.08101187,61472.0,61471.0,1.207186]
[1722651361228,0.83699887,61472.0,61471.0,1.207186]
[1722651361368,0.83599887,61472.0,61471.0,1.196186]
[1722651361895,0.83599887,61472.0,61471.0,1.195186]
[1722651362070,0.83699887,61472.0,61471.0,1.205186]
[1722651363643,0.76949124,61472.0,61471.0,1.205186]
[1722651363826,0.83754825,61472.0,61471.0,1.205186]
[1722651363971,1.08156125,61472.0,61471.0,1.205186]
[1722651364175,1.10456125,61472.0,61471.0,1.205186]
[1722651367288,1.153111,61472.0,61471.0,1.205186]
[1722651367491,0.59365016,61472.0,61471.0,1.287586]
[1722651367697,0.07016224,61472.0,61471.0,1.352986]
[1722651367995,0.01467312,61472.0,61471.0,1.352986]
[1722651368352,0.01367312,61472.0,61471.0,1.342986]
[1722651368797,0.01467312,61472.0,61471.0,1.356986]
[1722651369011,0.01367312,61472.0,61471.0,1.346986]
[1722651369383,0.01367312,61472.0,61471.0,1.360986]
[1722651371290,0.001,61472.0,61471.0,1.360986]
[1722651372533,0.00083,61473.0,61471.0,1.185186]
[1722651372749,0.00083,61473.0,61472.0,0.32997439]
[1722651372953,0.00083,61473.0,61472.0,0.3332276]
[1722651373545,0.00083,61473.0,61472.0,0.4332276]
[1722651373895,0.00083,61473.0,61472.0,0.59068684]
[1722651374809,0.00083,61473.0,61472.0,0.58743363]
[1722651375450,0.00083,61473.0,61472.0,0.61543363]
[1722651375867,0.00083,61473.0,61472.0,0.62543363]
[1722651376070,0.04869138,61493.0,61478.0,0.1392]
[1722651376341,0.01266942,61492.0,61487.0,0.1392]
[1722651376554,0.17065338,61495.0,61488.0,0.00157439]
[1722651376555,0.01266942,61491.0,61488.0,0.00157439]
[1722651376772,0.01266942,61490.0,61488.0,0.00157439]
[1722651376969,0.17065038,61496.0,61488.0,0.00157439]
[1722651377200,0.13462997,61495.0,61488.0,0.00157439]
[1722651377329,0.01266897,61494.0,61488.0,0.00157439]
[1722651377512,0.13463197,61494.0,61488.0,0.00157439]
[1722651377713,0.01266897,61493.0,61491.0,0.1892]
[1722651377931,0.121948,61502.0,61494.0,0.0785]
[1722651378148,0.121949,61501.0,61494.0,0.1392]
[1722651379009,0.243894,61502.0,61494.0,0.1392]
[1722651379183,0.365855,61500.0,61494.0,0.1532]
[1722651379383,0.121953,61499.0,61494.0,0.1532]
[1722651379618,0.121948,61502.0,61494.0,0.1532]
[1722651379786,0.121952,61500.0,61494.0,0.1532]
[1722651379986,0.121953,61499.0,61494.0,0.1672]
[1722651380244,0.121951,61500.0,61494.0,0.1672]
[1722651380738,0.07875194,61504.0,61494.0,0.1672]
[1722651380942,0.01266757,61503.0,61494.0,0.1672]
[1722651381145,0.121954,61499.0,61494.0,0.1672]
[1722651381320,0.243899,61501.0,61494.0,0.1672]
[1722651381474,0.121957,61497.0,61494.0,0.1672]
[1722651381686,0.243906,61499.0,61494.0,0.1532]
[1722651381862,0.20071294,61495.0,61494.0,0.014]
[1722651382073,0.85868429,61495.0,61494.0,0.014]
[1722651382283,0.121973,61489.0,61488.0,0.0607]
[1722651383329,0.121967,61492.0,61488.0,0.0607]
[1722651383532,0.121969,61491.0,61489.0,0.00157439]
[1722651383727,0.121971,61490.0,61488.0,0.0607]
[1722651383932,0.121972,61490.0,61488.0,0.0607]
[1722651384371,0.243927,61494.0,61489.0,0.00157439]
[1722651384570,0.243927,61494.0,61488.0,0.0747]
[1722651384571,0.27942024,61495.0,61494.0,0.013]
[1722651384900,0.243919,61496.0,61478.0,0.01012554]
[1722651384901,0.43017439,61501.0,61495.0,0.1392]
[1722651385113,0.121952,61500.0,61495.0,0.1392]
[1722651385326,0.43017439,61501.0,61495.0,0.1392]
[1722651385520,0.121951,61500.0,61495.0,0.1392]
[1722651385928,0.55212339,61501.0,61495.0,0.1392]
[1722651386129,0.121953,61499.0,61495.0,0.1392]
[1722651386485,0.121953,61499.0,61495.0,0.1532]
[1722651386886,0.121951,61500.0,61495.0,0.1532]
[1722651387088,0.121953,61499.0,61495.0,0.1532]
[1722651388023,0.67407339,61501.0,61495.0,0.1392]
[1722651388024,0.121956,61498.0,61495.0,0.1392]
[1722651388375,0.121956,61498.0,61495.0,0.1672]
[1722651388581,0.121956,61498.0,61495.0,0.1532]
[1722651388786,0.121956,61498.0,61495.0,0.1392]
[1722651388984,0.121956,61498.0,61495.0,0.1532]
[1722651389368,0.121951,61500.0,61495.0,0.1532]
[1722651389587,0.121951,61500.0,61495.0,0.1672]
[1722651389790,0.121953,61499.0,61495.0,0.1672]
[1722651390455,0.121953,61499.0,61495.0,0.1532]
[1722651391216,0.121953,61499.0,61495.0,0.1672]
[1722651391419,0.07875194,61505.0,61495.0,0.1392]
[1722651391619,0.121956,61498.0,61495.0,0.1532]
[1722651391891,0.121956,61498.0,61495.0,0.1672]
[1722651392208,0.121957,61497.0,61495.0,0.1672]
[1722651392408,0.121957,61497.0,61495.0,0.1532]
[1722651392635,0.121957,61497.0,61495.0,0.1392]
[1722651392844,0.121957,61497.0,61495.0,0.1532]
[1722651393035,0.121958,61497.0,61495.0,0.1532]
[1722651393211,0.243911,61498.0,61495.0,0.1532]
[1722651393416,0.121957,61497.0,61495.0,0.1532]
[1722651393619,0.121957,61497.0,61495.0,0.1642]
[1722651394107,0.121957,61497.0,61495.0,0.1392]
[1722651394296,0.243911,61498.0,61495.0,0.1392]
[1722651394490,0.121957,61497.0,61495.0,0.1672]
[1722651395017,0.121957,61497.0,61495.0,0.1532]
[1722651395190,0.15745924,61505.0,61495.0,0.1672]
[1722651395611,0.01266762,61504.0,61496.0,0.14635227]
[1722651395808,0.13593803,61521.0,61506.0,0.1431]
[1722651395809,0.121927,61512.0,61506.0,0.1431]
[1722651396014,0.121931,61510.0,61506.0,0.1431]
[1722651396184,0.07875194,61523.0,61506.0,0.1431]
[1722651396185,0.12193,61511.0,61506.0,0.1431]
[1722651396645,0.243843,61515.0,61506.0,0.1431]
[1722651396858,0.243823,61520.0,61506.0,0.1431]
[1722651396859,0.121931,61510.0,61506.0,0.1431]
[1722651397261,0.07875194,61523.0,61506.0,0.1431]
[1722651397262,0.121937,61507.0,61506.0,0.1431]
[1722651397593,0.13512784,61507.0,61506.0,0.1431]
[1722651397796,0.121937,61507.0,61506.0,0.1541]
[1722651398240,0.13460264,61507.0,61506.0,0.1431]
[1722651398424,0.121933,61509.0,61506.0,0.1431]
[1722651398628,0.121933,61509.0,61506.0,0.1711]
[1722651398826,0.121933,61509.0,61506.0,0.1571]
[1722651399031,0.121933,61509.0,61506.0,0.1711]
[1722651399292,0.24386,61511.0,61506.0,0.1711]
[1722651399486,0.121937,61507.0,61506.0,0.1571]
[1722651399699,0.609685,61507.0,61506.0,0.1701]
[1722651399914,0.37847638,61507.0,61506.0,0.1701]
[1722651400559,0.37847638,61507.0,61506.0,0.1561]
[1722651401002,0.37847638,61507.0,61506.0,0.1571]
[1722651401427,0.121937,61507.0,61506.0,0.1571]
[1722651401636,0.122767,61507.0,61506.0,0.1571]
[1722651401810,0.13543235,61507.0,61506.0,0.1571]
[1722651401987,0.13543235,61507.0,61506.0,0.1711]
[1722651402164,0.62318035,61507.0,61506.0,0.1431]
[1722651402367,0.62318035,61507.0,61506.0,0.014]
[1722651402368,0.13543235,61507.0,61506.0,0.014]
[1722651402567,0.37930635,61507.0,61506.0,0.014]
[1722651402769,0.121951,61500.0,61498.0,0.1431]
[1722651403211,0.121949,61501.0,61498.0,0.1431]
[1722651403395,0.121947,61503.0,61498.0,0.1431]
[1722651403786,0.01266623,61502.0,61498.0,0.1431]
[1722651403986,0.244704,61507.0,61498.0,0.1431]
[1722651403987,0.00083,61507.0,61502.0,0.07875194]
[1722651404140,0.00083,61516.0,61506.0,0.014]
[1722651404313,0.00083,61516.0,61515.0,0.3323]
[1722651404525,0.00083,61516.0,61515.0,0.4323]
[1722651405518,0.00083,61516.0,61515.0,0.4463]
[1722651405717,0.00083,61516.0,61515.0,0.4603]
[1722651405926,0.00083,61516.0,61515.0,0.4463]
[1722651406952,0.00083,61516.0,61515.0,0.4323]
[1722651407353,0.00083,61516.0,61515.0,0.4343]
[1722651407750,0.00083,61516.0,61515.0,0.4323]
[1722651407972,0.00083,61516.0,61515.0,0.4333]
[1722651408174,0.00083,61516.0,61515.0,0.4343]
[1722651408381,0.00083,61516.0,61515.0,0.44326771]
[1722651408531,0.00083,61516.0,61515.0,0.44226771]
[1722651408862,0.00083,61516.0,61515.0,0.2441]
[1722651409274,0.00083,61516.0,61515.0,0.4343]
[1722651410457,0.00083,61516.0,61515.0,0.4333]
[1722651410658,0.00083,61516.0,61515.0,0.4323]
[1722651410863,0.00083,61516.0,61515.0,0.4463]
[1722651411066,0.00083,61516.0,61515.0,0.60375924]
[1722651411667,0.00083,61516.0,61515.0,0.58975924]
[1722651412768,0.00083,61516.0,61515.0,0.59075924]
[1722651413624,0.00083,61516.0,61515.0,0.59175924]
[1722651414183,0.00083,61516.0,61515.0,0.59075924]
[1722651414609,0.00083,61516.0,61515.0,0.60075924]
[1722651415010,0.00083,61516.0,61515.0,0.59075924]
[1722651415212,0.00083,61516.0,61515.0,0.59175924]
[1722651415420,0.00083,61516.0,61515.0,0.60175924]
[1722651415827,0.00083,61516.0,61515.0,0.59075924]
[1722651416200,0.00083,61516.0,61515.0,0.64246382]
[1722651416423,0.00083,61516.0,61515.0,0.59075924]
[1722651416624,0.00083,61516.0,61515.0,0.58975924]
[1722651417171,0.00083,61516.0,61515.0,0.101]
[1722651417288,0.00083,61516.0,61511.0,0.161]
[1722651417789,0.00083,61516.0,61515.0,0.002]
[1722651417988,0.00083,61516.0,61515.0,0.39565924]
[1722651418140,0.00083,61516.0,61515.0,0.40465924]
[1722651418459,0.00083,61516.0,61515.0,0.41865924]
[1722651418659,0.00083,61516.0,61515.0,0.40465924]
[1722651420253,0.00183,61516.0,61515.0,0.40465924]
[1722651420457,0.00083,61516.0,61515.0,0.40465924]
[1722651420880,0.00916,61535.0,61520.0,0.01]
[1722651421097,0.00916,61535.0,61531.0,0.1892]
[1722651421255,0.00916,61535.0,61530.0,0.061]
[1722651421256,0.00916,61535.0,61534.0,0.2361]
[1722651422405,0.00916,61535.0,61534.0,0.63075924]
[1722651422756,0.01016,61535.0,61534.0,0.63275924]
[1722651423470,0.01016,61535.0,61534.0,0.64257982]
[1722651423872,0.00916,61535.0,61534.0,0.64057982]
[1722651424075,0.00916,61535.0,61534.0,0.66457982]
[1722651424283,0.01016,61535.0,61534.0,0.66857982]
[1722651424629,0.01016,61535.0,61534.0,0.65457982]
[1722651424826,0.01016,61535.0,61534.0,0.67857982]
[1722651425466,0.01016,61535.0,61534.0,0.93467982]
[1722651425714,0.00916,61548.0,61547.0,0.2361]
[1722651425912,0.00916,61548.0,61547.0,0.3361]
[1722651426630,0.00916,61548.0,61547.0,0.38441043]
[1722651426883,0.00916,61548.0,61547.0,0.39841043]
[1722651427091,0.00916,61548.0,61547.0,0.3501]
[1722651427259,0.00916,61548.0,61547.0,0.50755924]
[1722651427952,0.00916,61548.0,61547.0,0.55586967]
[1722651428761,0.00916,61548.0,61547.0,0.55169046]
[1722651428966,0.00916,61548.0,61547.0,0.64208003]
[1722651429362,0.00916,61548.0,61547.0,0.69039046]
[1722651429845,0.00916,61548.0,61547.0,0.65208003]
[1722651430332,0.00916,61548.0,61547.0,0.67208003]
[1722651430543,0.00916,61548.0,61547.0,0.67408003]
[1722651430922,0.00916,61548.0,61547.0,0.76263945]
[1722651431131,0.00916,61551.0,61550.0,0.032]
[1722651431280,0.00916,61551.0,61550.0,0.32815924]
[1722651431488,0.00916,61551.0,61550.0,0.51471866]
[1722651431891,0.00916,61551.0,61550.0,0.49471866]
[1722651432101,0.00916,61551.0,61550.0,0.51471866]
[1722651432925,0.00916,61551.0,61550.0,0.47646967]
[1722651433140,0.00916,61551.0,61550.0,0.519802]
[1722651433343,0.00916,61551.0,61550.0,0.47446967]
[1722651433544,0.00916,61551.0,61550.0,0.47546967]
[1722651433920,0.00916,61551.0,61550.0,0.500802]
[1722651434120,0.00916,61551.0,61550.0,0.47646967]
[1722651434321,0.00916,61551.0,61550.0,0.42915924]
[1722651434543,0.00916,61551.0,61550.0,0.42815924]
[1722651434867,0.00916,61551.0,61550.0,0.42915924]
[1722651435022,0.00916,61551.0,61550.0,0.47846967]
[1722651435539,0.00916,61551.0,61550.0,0.523802]
[1722651435997,0.00916,61551.0,61550.0,0.522802]
[1722651436349,0.00916,61551.0,61550.0,0.521802]
[1722651436548,0.00916,61551.0,61550.0,0.45149157]
[1722651436750,0.00916,61551.0,61550.0,0.50727595]
[1722651437033,0.00083,61555.0,61554.0,0.03]
[1722651437147,0.00083,61555.0,61554.0,0.56550756]
[1722651437790,0.00083,61555.0,61554.0,0.66550756]
[1722651438523,0.00083,61555.0,61554.0,0.66650756]
[1722651438667,0.00083,61555.0,61554.0,0.66850756]
[1722651438869,0.0109379,61559.0,61558.0,0.03]
[1722651439089,0.0109379,61559.0,61558.0,0.32615924]
[1722651439286,0.0109379,61559.0,61558.0,0.52729989]
[1722651439689,0.0109379,61559.0,61558.0,0.50729989]
[1722651439887,0.0109379,61559.0,61558.0,0.42615924]
[1722651440288,0.0109379,61559.0,61558.0,0.42815924]
[1722651440652,0.0109379,61559.0,61558.0,0.49029106]
[1722651440824,0.0109379,61559.0,61558.0,0.44481012]
[1722651441027,0.0109379,61559.0,61558.0,0.39815924]
[1722651441227,0.0109379,61559.0,61558.0,0.58485924]
[1722651441386,0.0109379,61559.0,61558.0,0.59585924]
[1722651441590,0.0109379,61559.0,61558.0,0.61685924]
[1722651441795,0.0109379,61559.0,61558.0,0.61585924]
[1722651442830,0.0109379,61559.0,61558.0,0.61485924]
[1722651443030,0.0109379,61559.0,61558.0,0.67533073]
[1722651443231,0.0109379,61559.0,61558.0,0.59779724]
[1722651443449,0.0109379,61559.0,61558.0,0.68726873]
[1722651443771,0.0109379,61559.0,61558.0,0.59579724]
[1722651443932,0.0109379,61559.0,61558.0,0.59679724]
[1722651444333,0.0109379,61559.0,61558.0,0.59779724]
[1722651444553,0.0109379,61559.0,61558.0,0.60579724]
[1722651444760,0.0109379,61559.0,61558.0,0.59679724]
[1722651444965,0.0109379,61559.0,61558.0,0.59779724]
[1722651445162,0.0109379,61559.0,61558.0,0.45909724]
[1722651445742,0.1572379,61559.0,61558.0,0.002]
[1722651446151,0.1572379,61559.0,61558.0,0.001]
[1722651446152,0.5227399,61559.0,61558.0,0.001]
[1722651446304,0.5227399,61559.0,61558.0,0.002]
[1722651446500,0.5227399,61559.0,61558.0,0.003]
[1722651446811,0.121838,61557.0,61549.0,0.0543415]
[1722651447009,0.1572379,61559.0,61556.0,0.1887]
[1722651447208,0.1572379,61559.0,61558.0,0.028]
[1722651447819,0.1572379,61559.0,61558.0,0.014]
[1722651448157,0.1572379,61559.0,61556.0,0.1887]
[1722651448695,0.1572379,61559.0,61550.0,0.34615924]
[1722651448923,0.1572379,61559.0,61551.0,0.1]
[1722651449130,0.1572379,61559.0,61556.0,0.014]
[1722651449705,0.1572379,61559.0,61553.0,0.1]
[1722651449909,0.1572379,61559.0,61553.0,0.25745924]
[1722651450498,0.0109379,61559.0,61556.0,0.1887]
[1722651450699,0.0109379,61559.0,61557.0,0.16070787]
[1722651451075,0.0109379,61559.0,61557.0,0.17070787]
[1722651451283,0.0109379,61559.0,61558.0,0.1]
[1722651451481,0.0109379,61559.0,61558.0,0.25745924]
[1722651452253,0.0109379,61559.0,61558.0,0.34732212]